fUSD/lending_fUSD_20240123
["ID","MTS","AMOUNT","RATE_DAILY","PERIOD"]
[312595337,1706045440505,-5007.65404292,0.00022993,2]
[312595339,1706045440514,-296.67924256,0.00022993,2]
[312595341,1706045440524,-155.91202129,0.00022993,2]
[312595343,1706045440533,-203.37489632,0.00022993,2]
[312595344,1706045440542,-155.48047323,0.00022993,2]
[312595345,1706045440551,-156.34928234,0.00022993,2]
[312595346,1706045440564,-686.23856624,0.00022993,2]
[312595347,1706045440574,-155.47979872,0.00022993,2]
[312595348,1706045440583,-215.00753688,0.00022993,2]
[312595349,1706045440593,-1198.3764781,0.00022993,2]
[312595350,1706045440603,-288.36702129,0.00022993,2]
[312595351,1706045440614,-304.95144327,0.00022993,2]
[312595352,1706045440624,-155.28486431,0.00022993,2]
[312595353,1706045440635,-4477.84140557,0.00022993,2]
[312595354,1706045440644,-342.61663816,0.00022993,2]
[312595355,1706045440655,-172.29367536,0.00022993,2]
[312595356,1706045440664,-279.39893279,0.00022993,2]
[312595357,1706045440673,-333.74434296,0.00022993,2]
[312595358,1706045440683,-262.52911397,0.00022993,2]
[312595359,1706045440692,-299.42600415,0.00022993,2]
[312595360,1706045440701,-676.33503808,0.00022994,2]
[312595361,1706045440710,-798559.36484279,0.00022994,2]
[312595362,1706045440721,-2000.0,0.00022995,2]
[312595363,1706045440730,-2000.0,0.00022995,2]
[312595364,1706045440740,-200.0,0.00022995,2]
[312595365,1706045440749,-128176.0089049,0.00022995,2]
[312595366,1706045440759,-11859.1139314,0.00022996,2]
[312595367,1706045440768,-72620.1632803,0.00022996,2]
[312595368,1706045440778,-174.1645886,0.00022996,2]
[312595369,1706045440787,-8074.00763911,0.00022998,2]
[312595370,1706045440796,-1332.42027005,0.00022998,2]
[312595371,1706045440806,-164.07049149,0.00022998,2]
[312595372,1706045440815,-500.0,0.00022999,2]
[312595373,1706045440825,-500.0,0.00022999,2]
[312595374,1706045440835,-500.0,0.00022999,2]
[312595375,1706045440845,-376.44862578,0.00022999,2]
[312595376,1706045440855,-448.15818417,0.00022999,2]
[312595377,1706045440867,-500.0,0.00022999,2]
[312595378,1706045440877,-500.0,0.00022999,2]
[312595379,1706045440887,-500.0,0.00022999,2]
[312595380,1706045440897,-500.0,0.00022999,2]
[312595381,1706045440908,-500.0,0.00022999,2]
[312595382,1706045440919,-500.0,0.00022999,2]
[312595383,1706045440930,-211.99238981,0.00022999,2]
[312595384,1706045440941,-500.0,0.00022999,2]
[312595385,1706045440952,-150.01,0.00022999,2]
[312595386,1706045440962,-1908.84983439,0.00022999,2]
[312595387,1706045440974,-199.61009961,0.00022999,2]
[312595388,1706045440983,-294.22553859,0.00022999,2]
[312595389,1706045440994,-500.0,0.00022999,2]
[312595390,1706045441004,-234.73959753,0.00022999,2]
[312595391,1706045441014,-300.0,0.00022999,2]
[312595392,1706045441023,-300.0,0.00022999,2]
[312595393,1706045441032,-300.0,0.00022999,2]
[312595394,1706045441041,-300.0,0.00022999,2]
[312595395,1706045441051,-300.0,0.00022999,2]
[312595396,1706045441061,-189.24943045,0.00022999,2]
[312595397,1706045441070,-500.0,0.00022999,2]
[312595398,1706045441079,-507.43141442,0.00022999,2]
[312595399,1706045441089,-500.0,0.00022999,2]
[312595400,1706045441100,-500.0,0.00022999,2]
[312595401,1706045441110,-500.0,0.00022999,2]
[312595402,1706045441121,-500.0,0.00022999,2]
[312595403,1706045441131,-429.25553019,0.00022999,2]
[312595404,1706045441140,-500.0,0.00022999,2]
[312595405,1706045441151,-500.0,0.00022999,2]
[312595406,1706045441161,-500.0,0.00022999,2]
[312595407,1706045441172,-500.0,0.00022999,2]
[312595408,1706045441181,-500.0,0.00022999,2]
[312595409,1706045441191,-500.0,0.00022999,2]
[312595410,1706045441202,-500.0,0.00022999,2]
[312595411,1706045441212,-500.0,0.00022999,2]
[312595412,1706045441222,-500.0,0.00022999,2]
[312595413,1706045441232,-500.0,0.00022999,2]
[312595414,1706045441241,-500.0,0.00022999,2]
[312595415,1706045441251,-150.0,0.00022999,2]
[312595416,1706045441261,-150.0,0.00022999,2]
[312595417,1706045441271,-156.59092148,0.00022999,2]
[312595418,1706045441280,-150.0,0.00022999,2]
[312595419,1706045441290,-156.59092148,0.00022999,2]
[312595420,1706045441299,-150.0,0.00022999,2]
[312595421,1706045441308,-156.59092148,0.00022999,2]
[312595422,1706045441318,-1728468.15940472,0.00023,2]
[312595423,1706045441883,-1123.23796047,0.00023,2]
[312595424,1706045441895,-319.6918195,0.00023,2]
[312595425,1706045441924,-9985.91701449,0.00023,2]
[312595426,1706045441935,-432.99651565,0.00023,2]
[312595427,1706045442779,-500.0,0.00022398,3]
[312595428,1706045442963,-636.88543483,0.00022398,3]
[312595429,1706045442973,-2557.41226672,0.00022927,3]
[312595430,1706045442982,-414221.60358119,0.00023,2]
[312595431,1706045442991,-205154.39456523,0.00023,2]
[312595432,1706045443001,-3028629.81274539,0.00023,2]
[312595434,1706045446349,-4704.54208523,0.00022397,2]
[312595435,1706045446359,-412.5888739,0.00022397,2]
[312595436,1706045446370,-5000.0,0.00022894,2]
[312595437,1706045446379,-150.84165777,0.00022999,2]
[312595438,1706045446389,-77605.6379835,0.00023,2]
[312595439,1706045446401,-32634.04497075,0.00023,2]
[312595440,1706045446422,-914.55072005,0.00023,2]
[312595451,1706045764218,202.0,0.00020243,2]
[312595452,1706045914295,466.0,0.00019692,2]
[312595453,1706046015649,1238.7861336,0.00021,2]
[312595454,1706046363564,442.7,0.00019484,2]
[312595461,1706046632315,-412.5888739,0.00021082,2]
[312595462,1706046632324,-202.0,0.00021083,2]
[312595463,1706046632334,-4704.54208523,0.00021307,2]
[312595464,1706046632343,-8801.28,0.00021308,2]
[312595465,1706046632352,-150.0,0.00021328,2]
[312595466,1706046632363,-300.0,0.00021328,2]
[312595467,1706046632371,-1000.0,0.0002133,2]
[312595468,1706046632382,-358.58,0.00021377,2]
[312595469,1706046632391,-178.24714727,0.00021507,2]
[312595470,1706046632400,-156.05,0.00021535,2]
[312595471,1706046632410,-240.44,0.00021607,2]
[312595472,1706046632420,-2044.19,0.00021607,2]
[312595473,1706046632429,-499.99,0.00021607,2]
[312595474,1706046632438,-178.47,0.00021644,2]
[312595475,1706046632448,-330.28,0.00021656,2]
[312595476,1706046632457,-1431.67,0.0002166,2]
[312595477,1706046632466,-442.7,0.00021748,2]
[312595478,1706046632475,-178.24714726,0.00021812,2]
[312595479,1706046632485,-156.05,0.00021815,2]
[312595480,1706046632494,-250.0,0.00021918,2]
[312595481,1706046632503,-457.37,0.00021956,2]
[312595482,1706046632512,-11754.41893529,0.00021956,2]
[312595483,1706046632524,-1293.658,0.00021956,2]
[312595484,1706046632555,-285.8344283,0.00021956,2]
[312595485,1706046632567,-591.42977514,0.00021956,2]
[312595486,1706046632578,-1060.15857639,0.00021956,2]
[312595487,1706046632613,-343.666,0.00021956,2]
[312595490,1706046632624,-372.04136223,0.00021956,2]
[312595492,1706046632635,-2657.13168263,0.00021956,2]
[312595495,1706046632659,-501.6156142,0.00021956,2]
[312595497,1706046632670,-3888.23659935,0.00021956,2]
[312595502,1706046638272,-1845.54902647,0.00021956,2]
[312595503,1706046638282,-762.26,0.00022075,2]
[312595504,1706046638292,-156.05,0.00022096,2]
[312595505,1706046638302,-178.24714726,0.00022117,2]
[312595506,1706046638312,-2765.97627105,0.00022298,2]
[312595507,1706046638550,-426.38202895,0.00022298,2]
[312595508,1706046638559,-1990.01436442,0.00022298,2]
[312595537,1706046641148,-183.66413558,0.00022298,2]
[312595538,1706046641157,-104.54096768,0.00022377,2]
[312595552,1706046646527,-164.42,0.00022088,2]
[312595553,1706046646536,-51.50903232,0.00022377,2]
[312595554,1706046646546,-178.24714726,0.00022422,2]
[312595555,1706046646555,-156.05,0.00022657,2]
[312595556,1706046646564,-225.0,0.00022677,2]
[312595557,1706046646573,-421.79466411,0.000227,3]
[312595558,1706046646582,-350.30463033,0.000227,2]
[312595559,1706046646643,-972.29595147,0.000227,2]
[312595560,1706046712919,524.45151195,6.94e-05,2]
[312595561,1706046774696,437.62,0.00020177,2]
[312595562,1706046828925,1629.15359743,0.000181,2]
[312595563,1706046844843,202.0,0.00020083,2]
[312595564,1706046847667,1000.0,0.000135,2]
[312595565,1706047139718,5193.19967638,0.000135,2]
[312595566,1706047157714,3077.28312281,0.000135,2]
[312595567,1706047207210,415.73,0.0001943,2]
[312595568,1706047607023,250.0,0.00020995,2]
[312595571,1706047690653,353.38,0.00019112,2]
[312595597,1706047832792,-412.5888739,0.00021008,2]
[312595598,1706047832802,-171.19,0.00021009,2]
[312595599,1706047832811,-5.16751505,0.00021046,2]
[312595600,1706047832955,-1560.62248495,0.00021046,2]
[312595601,1706047832965,-203.0,0.00021153,2]
[312595602,1706047832974,-500.0,0.00021154,2]
[312595603,1706047832984,-761.83,0.00021162,2]
[312595604,1706047832993,-200.0,0.00021167,2]
[312595605,1706047833003,-800.0,0.00021168,2]
[312595606,1706047833012,-300.1034,0.00021303,2]
[312595607,1706047833022,-1353.12,0.00021341,2]
[312595608,1706047833031,-1958.21,0.00021341,2]
[312595609,1706047833041,-353.38,0.00021376,2]
[312595610,1706047833051,-200.0,0.00021403,2]
[312595611,1706047833060,-186.0,0.00021429,2]
[312595612,1706047833070,-151.71,0.00021501,2]
[312595613,1706047833079,-150.0,0.00021587,2]
[312595614,1706047833088,-150.99,0.00021589,2]
[312595615,1706047833097,-499.99,0.00021589,2]
[312595616,1706047833106,-227.27,0.00021589,2]
[312595617,1706047833115,-206.1175,0.00021589,2]
[312595618,1706047833125,-558.2803,0.00021589,2]
[312595619,1706047833134,-14538.2017422,0.00021589,2]
[312595620,1706047833146,-2887.94746135,0.00021589,2]
[312595621,1706047833157,-579.59745,0.00021589,2]
[312595622,1706047833204,-600.0,0.00021589,2]
[312595623,1706047833219,-763.87956881,0.00021589,2]
[312595624,1706047833230,-431.46487485,0.00021589,2]
[312595625,1706047833242,-600.1261207,0.00021589,2]
[312595626,1706047833254,-1011.15311458,0.00021589,2]
[312595627,1706047833285,-3921.82876751,0.00021589,2]
[312595628,1706047833295,-151.71,0.00021603,2]
[312595629,1706047833304,-178.47,0.00021644,2]
[312595630,1706047833313,-5094.05466202,0.00021688,2]
[312595631,1706047833323,-103995.14466146,0.00021689,2]
[312595632,1706047833332,-14585.4,0.00021689,2]
[312595633,1706047833341,-151.71,0.00021705,2]
[312595634,1706047833350,-151.71,0.00021807,2]
[312595635,1706047833359,-151.71,0.00021909,2]
[312595636,1706047833369,-821.65,0.00021918,3]
[312595637,1706047833378,-250.0,0.00021918,2]
[312595638,1706047833387,-1829.61,0.00021918,2]
[312595639,1706047833397,-352.78,0.00022,2]
[312595640,1706047833406,-500.0,0.00022,2]
[312595641,1706047833415,-161.85167911,0.00022002,2]
[312595642,1706047833425,-151.71,0.00022011,2]
[312595643,1706047833434,-161.85167911,0.00022071,2]
[312595644,1706047833443,-151.71,0.00022112,2]
[312595645,1706047833452,-161.85167911,0.0002214,2]
[312595646,1706047833461,-161.85167911,0.00022209,2]
[312595647,1706047833471,-151.71,0.00022214,2]
[312595648,1706047833481,-161.85167911,0.00022279,2]
[312595649,1706047833490,-151.71,0.00022316,2]
[312595650,1706047833499,-161.85167911,0.00022348,2]
[312595651,1706047833509,-262.5,0.00022357,2]
[312595652,1706047833519,-1047.0,0.000224,2]
[312595653,1706047833528,-161.85167911,0.00022417,2]
[312595654,1706047833537,-151.71,0.00022418,2]
[312595655,1706047833546,-161.85167911,0.00022486,2]
[312595656,1706047833556,-151.71,0.0002252,2]
[312595657,1706047833565,-3700.42805578,0.00022543,3]
[312595658,1706047833574,-2500.0,0.00022543,2]
[312595659,1706047833583,-161.85167911,0.00022555,2]
[312595660,1706047833593,-151.71,0.00022622,2]
[312595661,1706047833602,-161.85167911,0.00022624,2]
[312595662,1706047833611,-947.0,0.00022643,2]
[312595663,1706047833620,-1251.0,0.00022643,2]
[312595664,1706047833629,-324.442,0.00022643,2]
[312595665,1706047833638,-825.594,0.00022643,2]
[312595666,1706047833648,-1233.0,0.00022643,2]
[312595667,1706047833657,-528.0,0.00022643,2]
[312595668,1706047833666,-594.0,0.00022643,2]
[312595669,1706047833675,-236.0,0.00022643,2]
[312595670,1706047833685,-553.706,0.00022643,2]
[312595671,1706047833694,-2058.413,0.00022643,2]
[312595672,1706047833703,-998.0,0.00022643,2]
[312595673,1706047833713,-866.0,0.00022643,2]
[312595674,1706047833722,-150.0,0.00022643,2]
[312595675,1706047833731,-509.0,0.00022643,2]
[312595676,1706047833740,-319.0,0.00022643,2]
[312595677,1706047833749,-161.85167911,0.00022693,2]
[312595678,1706047833760,-6217.8864,0.00022695,2]
[312595679,1706047833769,-438.3601,0.00022716,2]
[312595680,1706047833778,-161.85167911,0.00022762,2]
[312595681,1706047833788,-1678.29920257,0.00022795,2]
[312595682,1706047833797,-1000.0,0.00022795,2]
[312595683,1706047833806,-2276.0,0.00022799,2]
[312595684,1706047833816,-1862.162,0.00022799,2]
[312595685,1706047833826,-4454.479,0.00022799,2]
[312595686,1706047833835,-3523.714,0.00022799,2]
[312595687,1706047833845,-1688.542,0.00022799,2]
[312595688,1706047833856,-2909.0,0.00022799,2]
[312595689,1706047833865,-19726.0,0.00022799,2]
[312595690,1706047833875,-1031.0,0.00022799,2]
[312595691,1706047833887,-199.547,0.00022799,2]
[312595692,1706047833896,-200.0,0.00022815,2]
[312595693,1706047833906,-500.0,0.00022816,2]
[312595694,1706047833915,-200.0,0.00022816,2]
[312595695,1706047833925,-800.0,0.00022816,2]
[312595696,1706047833935,-200.0,0.00022816,2]
[312595697,1706047833944,-200.0,0.00022816,2]
[312595698,1706047833953,-161.85167911,0.00022831,2]
[312595699,1706047833963,-2526.07419397,0.00022885,2]
[312595700,1706047833972,-259.2636,0.00022895,2]
[312595701,1706047833981,-4224.3428,0.00022895,2]
[312595702,1706047833990,-6044.087,0.00022895,2]
[312595703,1706047834000,-19285.6372791,0.00022895,2]
[312595707,1706047837449,-293.24869686,0.00022895,2]
[312595708,1706047837462,-716.53939924,0.00022895,2]
[312595709,1706047837507,-761.18262149,0.00022895,2]
[312595710,1706047837565,-559.28171963,0.00022895,2]
[312595711,1706047837617,-521.63355782,0.00022895,2]
[312595712,1706047837634,-1172.8,0.00022895,2]
[312595713,1706047837681,-20449.50000004,0.00022895,2]
[312595714,1706047837793,-18110.16655055,0.00022895,2]
[312595715,1706047837805,-2817.60525576,0.00022895,2]
[312595716,1706047837817,-65727.12071951,0.00022895,2]
[312595717,1706047837826,-8252.4018,0.00022895,2]
[312595718,1706047837835,-161.85167911,0.000229,2]
[312595719,1706047837844,-5000.0,0.000229,2]
[312595721,1706047837853,-7495.9158978,0.000229,2]
[312595723,1706047837863,-153.18823684,0.000229,2]
[312595725,1706047837872,-183.97179688,0.000229,2]
[312595727,1706047837881,-12502.70685854,0.000229,2]
[312595729,1706047837890,-993.67870342,0.00022948,2]
[312595731,1706047837899,-1353.12,0.00022985,2]
[312595733,1706047837908,-4546.15556741,0.00022994,2]
[312595735,1706047837917,-130145.5278398,0.00022995,2]
[312595737,1706047837927,-5879.5831662,0.00022995,2]
[312595739,1706047837936,-983.9293365,0.00022995,2]
[312595740,1706047837945,-163.81635051,0.00022998,2]
[312595742,1706047837954,-589.115,0.00022998,2]
[312595744,1706047837964,-429.93636505,0.00022998,2]
[312595745,1706047837973,-1908.84983439,0.00022999,2]
[312595746,1706047837982,-310.20248098,0.00022999,2]
[312595747,1706047837991,-509.0,0.00023,2]
[312595748,1706047838001,-250.0,0.00023,2]
[312595749,1706047838010,-153.255,0.00023,2]
[312595750,1706047838019,-150.0,0.00023,2]
[312595751,1706047838028,-157.083,0.00023,2]
[312595752,1706047838037,-259.65,0.00023,2]
[312595753,1706047838046,-150.258,0.00023,2]
[312595754,1706047838055,-150.0,0.00023,2]
[312595755,1706047838065,-162.958,0.00023,2]
[312595756,1706047838075,-206.908,0.00023,2]
[312595757,1706047838084,-837.0,0.00023,2]
[312595758,1706047838093,-449.0,0.00023,2]
[312595759,1706047838103,-609072.99599568,0.00023,2]
[312595760,1706047838112,-430896.37971022,0.00023,2]
[312595761,1706047838122,-1290.7783835,0.00023,2]
[312595762,1706047838132,-420373.07014558,0.00023,2]
[312595763,1706047838141,-16618.7515368,0.00023,2]
[312595764,1706047838176,-2034.66080446,0.00023,2]
[312595765,1706047840460,-214262.38323761,0.00023,2]
[312595766,1706047840829,-355.72425126,0.00023,2]
[312595767,1706047840891,-462.85969774,0.00023,2]
[312595789,1706047842528,-771.37790834,0.00023,2]
[312596010,1706047845688,-246.51844198,0.00022999,2]
[312596011,1706047845698,-332509.96068973,0.00023,2]
[312596012,1706047845708,-44016.6049998,0.00023,2]
[312596013,1706047845854,-1109.2,0.00023,2]
[312596016,1706048127405,387.59,0.00020494,2]
[312596017,1706048558165,368.21,0.00019962,2]
[312596018,1706048637505,413.16012897,0.00020466,2]
[312596023,1706048988697,364.67,0.0001983,2]
[312596024,1706049005052,203.0,0.00020391,2]
[312596046,1706049031625,-1065.54810808,0.00021385,2]
[312596047,1706049031681,-354.11977769,0.00021384,2]
[312596048,1706049031693,-619.10457445,0.00021384,2]
[312596049,1706049031705,-206.18125308,0.00021384,2]
[312596050,1706049031714,-4154.7329459,0.00021385,2]
[312596051,1706049031725,-996.85,0.00021698,2]
[312596052,1706049031735,-314.22386055,0.00021713,2]
[312596053,1706049031748,-1181.16613945,0.00021713,2]
[312596054,1706049031758,-200.0,0.00021748,2]
[312596055,1706049031767,-180.0,0.00021751,2]
[312596056,1706049031777,-178.47,0.00021766,2]
[312596057,1706049031789,-186.0,0.000218,2]
[312596058,1706049031799,-150.0,0.0002185,2]
[312596059,1706049031809,-1221.11,0.00021851,2]
[312596060,1706049031820,-500.0,0.00021885,2]
[312596061,1706049031830,-166.23566971,0.000219,2]
[312596062,1706049031842,-250.0,0.00021918,2]
[312596063,1706049031853,-2080.3,0.00021918,2]
[312596064,1706049031863,-3168.51,0.00021918,2]
[312596065,1706049031872,-158.12,0.00021931,2]
[312596066,1706049031881,-928.0,0.0002208,2]
[312596067,1706049031892,-364.67,0.00022094,2]
[312596068,1706049031901,-499.99,0.00022515,2]
[312596069,1706049031911,-150.99,0.00022515,2]
[312596070,1706049031921,-150.99,0.00022656,2]
[312596071,1706049031930,-9564.74,0.00022702,2]
[312596072,1706049031940,-2909.0,0.00022739,2]
[312596073,1706049031949,-2276.0,0.00022739,2]
[312596074,1706049031959,-19726.0,0.00022739,2]
[312596075,1706049031968,-837.0,0.00022739,2]
[312596076,1706049031977,-947.0,0.00022739,2]
[312596077,1706049031987,-1031.0,0.00022739,2]
[312596079,1706049031996,-1086.77087202,0.00022816,3]
[312596080,1706049032006,-200.0,0.00022816,2]
[312596082,1706049032015,-200.0,0.00022816,2]
[312596084,1706049032025,-800.0,0.00022816,2]
[312596086,1706049032035,-7513.35583929,0.0002289,2]
[312596087,1706049032044,-22733.1358,0.00022898,2]
[312596088,1706049032053,-416.3619,0.000229,2]
[312596089,1706049032062,-19878.0226,0.000229,2]
[312596090,1706049032072,-2500.0,0.000229,2]
[312596091,1706049032081,-1468.51180224,0.000229,2]
[312596092,1706049032091,-409.87754981,0.00022998,2]
[312596093,1706049032100,-2466.2702223,0.00022998,2]
[312596094,1706049032109,-2210.81883918,0.00022999,2]
[312596095,1706049032121,-1486.50553329,0.00022999,2]
[312596096,1706049032132,-236.0,0.00023,2]
[312596097,1706049032141,-426.0,0.00023,2]
[312596098,1706049032151,-83.65613292,0.00023,2]
[312596099,1706049032171,-655.60712406,0.00023,2]
[312596100,1706049032182,-258.73674302,0.00023,2]
[312596101,1706049032191,-137.02646423,0.00023,2]
[312596102,1706049032201,-298.38963629,0.00023,2]
[312596103,1706049032212,-387.61028032,0.00023,2]
[312596104,1706049032224,-1112.97361916,0.00023,2]
[312596105,1706049032233,-319.0,0.00023,2]
[312596106,1706049032242,-506.704,0.00023,2]
[312596107,1706049032251,-866.0,0.00023,2]
[312596108,1706049032260,-150.0,0.00023,2]
[312596109,1706049032270,-2708.06930488,0.00023,3]
[312596110,1706049032279,-1641.89042063,0.00023,3]
[312596111,1706049032291,-268.4268511,0.00023,3]
[312596112,1706049032318,-56.99625578,0.00023,3]
[312596113,1706049032327,-6817.37904557,0.00023,2]
[312596114,1706049032338,-6958.41872386,0.00023,2]
[312596115,1706049032349,-2013.91252975,0.00023,2]
[312596116,1706049032361,-2762.12666536,0.00023,2]
[312596117,1706049032371,-351.19199333,0.00023,2]
[312596118,1706049032382,-1341.53946258,0.00023,2]
[312596119,1706049032636,-1647.65586701,0.00023,2]
[312596120,1706049032684,-1428.89313008,0.00023,2]
[312596121,1706049032695,-2147.15410892,0.00023,2]
[312596122,1706049032706,-200075.87864651,0.00023,2]
[312596123,1706049032726,-291.09812629,0.00023,2]
[312596124,1706049032738,-2333.73620975,0.00023,2]
[312596125,1706049032753,-461.43417062,0.00023,2]
[312596137,1706049038548,-1233.0,0.00022739,2]
[312596138,1706049038557,-1251.0,0.00022739,2]
[312596139,1706049038566,-215.0,0.00022739,2]
[312596140,1706049038578,-72044.17622888,0.00023,2]
[312596141,1706049038588,-1290.7783835,0.00023,2]
[312596142,1706049038597,-306.077161,0.00023,2]
[312596143,1706049038607,-2000.0,0.00023,2]
[312596144,1706049038616,-619.96822662,0.00023,2]
[312596145,1706049038714,-603.49503538,0.00023,2]
[312596146,1706049038723,-1838.16444832,0.00023,2]
[312596147,1706049038733,-878.0,0.00023,2]
[312596148,1706049038743,-344.0,0.00023,2]
[312596149,1706049038753,-899.7162,0.00023,2]
[312596150,1706049038762,-339.16603409,0.00023,2]
[312596151,1706049038774,-941.34711062,0.00023,2]
[312596152,1706049038785,-219.48685529,0.00023,2]
[312596153,1706049038794,-574.024066,0.00023,2]
[312596154,1706049038803,-1000.0,0.00023,2]
[312596155,1706049038812,-3277.3727,0.00023,2]
[312596156,1706049038822,-260.35,0.00023,2]
[312596157,1706049038831,-767.43247508,0.00023003,2]
[312596158,1706049038841,-304.10168762,0.00023004,2]
[312596159,1706049038850,-607.62912466,0.00023004,2]
[312596160,1706049038859,-52006.94097394,0.00023082,2]
[312596161,1706049038870,-23869.5281148,0.00023082,2]
[312596162,1706049038882,-2930.79372266,0.00023082,2]
[312596164,1706049038892,-1070.3403006,0.00023098,2]
[312596166,1706049038901,-601.2340889,0.00023114,2]
[312596168,1706049038910,-3655.3398929,0.0002313,2]
[312596170,1706049038919,-166.23566966,0.0002323,2]
[312596172,1706049038929,-996.85,0.00023342,2]
[312596174,1706049038939,-2202.54581578,0.00023819,3]
[312596175,1706049038948,-233.84,0.00023819,2]
[312596176,1706049038957,-3233.0,0.000239,2]
[312596177,1706049038967,-16816.0,0.000239,2]
[312596178,1706049038977,-203.0,0.00023992,7]
[312596179,1706049038987,-511.56484761,0.00024,7]
[312596180,1706049038996,-201.22485393,0.00024,2]
[312596182,1706049039006,-155.6862248,0.00024,2]
[312596184,1706049039015,-1263.64554539,0.00024,6]
[312596186,1706049039025,-210.0,0.00024035,2]
[312596188,1706049039034,-755.22626187,0.000241,2]
[312596190,1706049039044,-167.01,0.00024297,2]
[312596192,1706049039053,-167.0,0.00024297,2]
[312596194,1706049039063,-168.99,0.00024297,2]
[312596196,1706049039072,-167.0,0.00024297,2]
[312596198,1706049039081,-169.34,0.00024297,2]
[312596200,1706049039091,-364.67,0.00024358,2]
[312596201,1706049039100,-325.29759389,0.0002442,2]
[312596202,1706049039110,-166.23566966,0.0002456,2]
[312596203,1706049039120,-5118.91,0.00024658,4]
[312596204,1706049039129,-250.0,0.00024658,2]
[312596205,1706049039139,-150.0,0.00024658,2]
[312596206,1706049039149,-150.0,0.00024658,2]
[312596207,1706049039158,-150.0,0.00024658,2]
[312596208,1706049039167,-150.0,0.00024658,2]
[312596209,1706049039176,-150.0,0.00024658,2]
[312596210,1706049039186,-150.0,0.00024658,2]
[312596211,1706049039195,-150.0,0.00024658,2]
[312596212,1706049039205,-150.0,0.00024658,2]
[312596213,1706049039214,-150.0,0.00024658,2]
[312596214,1706049039224,-150.0,0.00024658,2]
[312596215,1706049039233,-150.0,0.00024658,2]
[312596216,1706049039242,-150.0,0.00024658,2]
[312596217,1706049039251,-150.0,0.00024658,2]
[312596218,1706049039261,-150.0,0.00024658,2]
[312596219,1706049039270,-150.0,0.00024658,2]
[312596220,1706049039279,-150.0,0.00024658,2]
[312596221,1706049039288,-150.0,0.00024658,2]
[312596222,1706049039298,-150.0,0.00024658,2]
[312596223,1706049039308,-150.0,0.00024658,2]
[312596224,1706049039320,-150.0,0.00024658,2]
[312596225,1706049039330,-205.0,0.0002466,2]
[312596226,1706049039339,-233.84,0.00024661,2]
[312596227,1706049039349,-928.0,0.0002484,2]
[312596228,1706049039359,-996.85,0.00024986,2]
[312596229,1706049039369,-178.47,0.00024988,2]
[312596230,1706049039378,-192.4053857,0.00025,5]
[312596231,1706049039388,-1779.7878616,0.00025,7]
[312596232,1706049039398,-500.0,0.00025,2]
[312596233,1706049039407,-323.14224298,0.00025,2]
[312596234,1706049039417,-1075.57554515,0.00025,2]
[312596235,1706049039426,-242.30425329,0.00025,2]
[312596237,1706049039436,-934.10101204,0.00025,2]
[312596238,1706049039445,-1249.5542374,0.00025,2]
[312596239,1706049039454,-303.60833749,0.00025,2]
[312596240,1706049039463,-158.75568138,0.00025,2]
[312596241,1706049039473,-167.46550336,0.00025,2]
[312596242,1706049039482,-509.35522682,0.00025,2]
[312596244,1706049039491,-155.0,0.00025,2]
[312596245,1706049039502,-1433.31475941,0.00025,2]
[312596246,1706049039516,-8182.79999999,0.00025,2]
[312596247,1706049039536,-438.20601641,0.00025,2]
[312596248,1706049039547,-995.971528,0.00025,2]
[312596249,1706049039556,-150.0,0.00025,2]
[312596250,1706049039565,-344.985817,0.00025,2]